bitfinex-derivatives/quotes_BNBF0:USTF0_20250316
["timestamp","ask_amount","ask_price","bid_price","bid_amount"]
[1742101241180,2.51849035,608.93,608.27,5.547]
[1742101245586,0.32830479,609.19,608.27,5.547]
[1742101245587,2.51849035,608.79,608.27,5.547]
[1742101245986,2.51849035,608.79,608.27,3.707]
[1742101247283,2.51849035,608.76,608.27,3.707]
[1742101248682,2.51849035,608.78,608.27,3.707]
[1742101250491,2.51849035,608.74,608.27,3.707]
[1742101253890,2.51849035,608.74,608.27,2.052]
[1742101254388,0.32830479,609.19,608.27,2.052]
[1742101254389,2.51849035,608.72,608.27,2.052]
[1742101256491,2.51849035,608.7,608.27,2.052]
[1742101257993,2.51849035,608.71,608.27,2.052]
[1742101259486,2.51849035,608.73,608.27,2.052]
[1742101261498,2.51849035,609.07,608.27,2.052]
[1742101261691,2.51849035,609.07,608.21,1.548]
[1742101262589,2.51849035,609.07,608.22,1.01637142]
[1742101262791,2.51849035,609.07,608.21,1.548]
[1742101262994,2.51849035,609.07,608.22,1.00850455]
[1742101263295,0.32830479,609.19,608.23,1.0084847]
[1742101263296,2.51849035,609.06,608.23,1.0084847]
[1742101263495,2.51849035,609.06,608.24,1.0084847]
[1742101263695,2.51849035,609.06,608.25,1.0084847]
[1742101263895,2.51849035,609.06,608.21,1.548]
[1742101264095,2.51849035,609.06,608.22,1.0076462]
[1742101264296,2.51849035,609.06,608.23,1.0076462]
[1742101264498,2.51849035,609.06,608.24,1.0076462]
[1742101264698,2.51849035,609.06,608.24,1.673]
[1742101265199,2.51849035,609.06,608.25,1.666]
[1742101265598,0.32830479,609.19,608.25,1.666]
[1742101271099,2.51849035,609.17,608.25,1.666]
[1742101273705,2.51849035,609.18,608.25,1.666]
[1742101274911,0.32830479,609.19,608.25,1.666]
[1742101276112,0.32830479,609.19,608.24,1.673]
[1742101278214,0.32830479,609.19,608.25,2.027]
[1742101279408,0.32830479,609.19,608.26,2.18]
[1742101293522,2.51849035,609.17,608.26,2.18]
[1742101293725,0.32832096,609.16,608.26,2.18]
[1742101298428,0.32832096,609.16,608.25,2.027]
[1742101300932,2.51849035,609.12,608.25,2.027]
[1742101301125,0.32834791,609.11,608.25,2.027]
[1742101302529,0.32834791,609.11,608.26,1.922]
[1742101305233,0.32834791,609.11,608.27,1.592]
[1742101308035,0.32834791,609.11,608.27,2.928]
[1742101313034,0.32834791,609.11,608.27,4.433]
[1742101315740,2.51849035,609.08,608.27,4.433]
[1742101319944,2.51849035,609.01,608.27,4.433]
[1742101321744,2.51849035,608.91,608.27,4.433]
[1742101323039,2.51849035,608.83,608.27,4.433]
[1742101323246,2.51849035,608.83,608.27,3.097]
[1742101324945,2.51849035,608.79,608.27,3.097]
[1742101326544,2.51849035,608.72,608.27,3.097]
[1742101328348,2.51849035,608.77,608.27,3.097]
[1742101330756,2.51849035,608.7,608.27,3.097]
[1742101331955,2.51849035,608.74,608.27,3.097]
[1742101334260,2.51849035,608.74,608.27,1.505]
[1742101334860,2.51849035,608.71,608.27,1.505]
[1742101336456,2.51849035,608.72,608.27,1.505]
[1742101338062,2.51849035,608.72,608.22,2.068]
[1742101338264,2.51849035,608.74,608.22,2.068]
[1742101340174,2.51849035,608.73,608.22,2.068]
[1742101341765,2.51849035,608.69,608.22,2.068]
[1742101345772,2.51849035,608.66,608.22,2.068]
[1742101348267,2.51849035,608.6,608.22,2.068]
[1742101349669,2.51849035,608.61,608.22,2.068]
[1742101351068,2.51849035,608.62,608.22,2.068]
[1742101352970,2.51849035,608.6,608.22,2.068]
[1742101355970,2.51849035,608.6,608.16,1.526]
[1742101356872,2.51849035,608.75,608.16,1.526]
[1742101357472,2.51849035,608.75,608.16,3.155]
[1742101358668,2.51849035,608.74,608.16,3.155]
[1742101360072,2.51849035,608.74,608.16,4.839]
[1742101361574,2.51849035,608.73,608.16,4.839]
[1742101364073,2.51849035,608.72,608.16,4.839]
[1742101365676,0.32834791,609.11,608.16,4.839]
[1742101377284,2.51849035,609.05,608.16,4.839]
[1742101378385,2.51849035,609.09,608.16,4.839]
[1742101380989,0.32834791,609.11,608.16,4.839]
[1742101385589,0.32834791,609.11,608.16,6.516]
[1742101398900,2.51849035,609.19,608.17,1.33165495]
[1742101399101,2.51849035,609.19,608.18,1.33164955]
[1742101399399,2.51849035,609.19,608.19,1.33164414]
[1742101399600,2.51849035,609.19,608.2,1.33142042]
[1742101399801,2.51849035,609.19,608.21,1.33141502]
[1742101400101,2.51849035,609.19,608.22,1.33140961]
[1742101400401,2.51849035,609.19,608.16,4.887]
[1742101400402,2.51849035,609.36,608.23,0.32882297]
[1742101402802,2.51849035,609.46,608.24,1.898]
[1742101403000,2.51849035,609.46,608.24,2.22681757]
[1742101403704,0.32816473,609.45,608.24,2.22681757]
[1742101405512,2.51849035,609.41,608.24,2.22681757]
[1742101405705,0.32819166,609.4,608.24,2.22681757]
[1742101409109,2.51849035,609.33,608.24,2.22681757]
[1742101410014,2.51849035,609.33,608.24,0.32881757]
[1742101410512,0.32819166,609.4,608.24,0.32881757]
[1742101422622,0.32819166,609.4,608.25,1.00400649]
[1742101422823,0.32819166,609.4,608.26,1.00396153]
[1742101423024,0.32819166,609.4,608.27,1.00396153]
[1742101423223,0.32819166,609.4,608.24,0.32881757]
[1742101423424,0.32819166,609.4,608.25,1.00417603]
[1742101423624,0.32819166,609.4,608.26,1.00417603]
[1742101423819,0.32819166,609.4,608.27,1.00417603]
[1742101424015,0.32819166,609.4,608.24,0.32881757]
[1742101424016,0.32819166,609.4,608.28,1.0041805]
[1742101424220,0.32819166,609.4,608.24,0.32881757]
[1742101424419,0.32819166,609.4,608.25,1.00419944]
[1742101424621,0.32819166,609.4,608.26,1.00419944]
[1742101424819,0.32819166,609.4,608.27,1.00419944]
[1742101425023,0.32819166,609.4,608.28,1.00419944]
[1742101425223,0.32819166,609.4,608.24,0.32881757]
[1742101425424,0.32819166,609.4,608.25,1.00425619]
[1742101425625,0.32819166,609.4,608.26,1.00425619]
[1742101425823,0.32819166,609.4,608.24,0.32881757]
[1742101426018,0.32819166,609.4,608.25,1.00425148]
[1742101426221,0.32819166,609.4,608.26,1.00425148]
[1742101426418,0.32819166,609.4,608.27,1.00425148]
[1742101426622,0.32819166,609.4,608.28,1.00425148]
[1742101426819,0.32819166,609.4,608.29,1.00427445]
[1742101427019,0.32819166,609.4,608.24,0.32881757]
[1742101427224,0.32819166,609.4,608.25,1.00426163]
[1742101427424,0.32819166,609.4,608.26,1.00426163]
[1742101427625,0.32819166,609.4,608.27,1.00426163]
[1742101427825,0.32819166,609.4,608.28,1.00426163]
[1742101428127,0.32819166,609.4,608.29,1.00426163]
[1742101428428,0.32819166,609.4,608.3,1.33304676]
[1742101428727,0.32819166,609.4,608.31,1.33304136]
[1742101428922,0.32819166,609.4,608.32,1.33303595]
[1742101429127,0.32819166,609.4,608.33,1.33303055]
[1742101429324,0.32819166,609.4,608.34,1.33302515]
[1742101429528,0.32819166,609.4,608.35,1.00426163]
[1742101429728,0.32819166,609.4,608.36,1.00426163]
[1742101429929,0.32819166,609.4,608.37,1.00426163]
[1742101430129,0.32819166,609.4,608.38,1.00410416]
[1742101430329,0.32819166,609.4,608.34,0.32876352]
[1742101430530,0.32819166,609.4,608.35,1.00398292]
[1742101430829,0.32819166,609.4,608.36,1.00398292]
[1742101431026,0.32819166,609.4,608.37,1.00398292]
[1742101431223,0.32819166,609.4,608.38,1.00398292]
[1742101431424,0.32819166,609.4,608.34,0.32876352]
[1742101431622,0.32819166,609.4,608.35,1.0038921]
[1742101431924,0.32819166,609.4,608.36,1.0038921]
[1742101432222,0.32819166,609.4,608.37,1.0038921]
[1742101432422,0.32819166,609.4,608.38,1.0038921]
[1742101432625,0.32819166,609.4,608.39,1.0038921]
[1742101432827,0.32819166,609.4,608.4,1.0038921]
[1742101433028,0.32819166,609.4,608.41,1.0038921]
[1742101433225,0.32819166,609.4,608.34,0.32876352]
[1742101433426,0.32819166,609.4,608.35,1.00368394]
[1742101433628,0.32819166,609.4,608.36,2.14932524]
[1742101433830,0.32819166,609.4,608.37,1.00368394]
[1742101434326,0.32819166,609.4,608.38,1.00368394]
[1742101434529,0.32819166,609.4,608.39,1.00368394]
[1742101434725,0.32819166,609.4,608.4,1.00368394]
[1742101434930,0.32819166,609.4,608.34,0.32876352]
[1742101441732,2.51849035,609.32,608.34,0.32876352]
[1742101443438,2.51849035,609.33,608.34,0.32876352]
[1742101445133,2.51849035,609.33,608.35,1.00417769]
[1742101445337,2.51849035,609.33,608.34,0.32876352]
[1742101445537,2.51849035,609.33,608.35,1.00423915]
[1742101445740,2.51849035,609.3,608.34,0.32876352]
[1742101445938,2.51849035,609.3,608.35,1.00423915]
[1742101446139,2.51849035,609.3,608.34,0.32876352]
[1742101446437,2.51849035,609.3,608.35,1.00427777]
[1742101446637,2.51849035,609.3,608.34,0.32876352]
[1742101446837,2.51849035,609.3,608.35,1.0042825]
[1742101447034,2.51849035,609.3,608.34,0.32876352]
[1742101447236,2.51849035,609.3,608.35,1.0042825]
[1742101447431,2.51849035,609.3,608.34,0.32876352]
[1742101447835,0.32819166,609.4,608.34,0.32876352]
[1742101449342,0.32819166,609.4,608.35,1.00443261]
[1742101449538,0.32819166,609.4,608.34,0.32876352]
[1742101449743,0.32819166,609.4,608.35,1.00443322]
[1742101449943,0.32819166,609.4,608.34,0.32876352]
[1742101450243,0.32819166,609.4,608.35,1.00451033]
[1742101450438,0.32819166,609.4,608.34,0.32876352]
[1742101450643,0.32819166,609.4,608.35,1.00449757]
[1742101450937,0.32819166,609.4,608.34,0.32876352]
[1742101451339,2.51849035,609.69,608.35,1.00450967]
[1742101451544,2.51849035,609.69,608.37,0.3287473]
[1742101451746,2.51849035,609.69,608.38,1.00450967]
[1742101451945,2.51849035,609.69,608.39,1.33324617]
[1742101452148,2.51849035,609.69,608.4,1.33324076]
[1742101452344,2.51849035,609.69,608.41,1.33323536]
[1742101452547,2.51849035,609.69,608.42,1.33322996]
[1742101452847,2.51849035,609.69,608.43,1.33322455]
[1742101453048,2.51849035,609.69,608.44,1.33321915]
[1742101453249,2.51849035,609.69,608.45,1.00450967]
[1742101453447,2.8465259,609.69,608.46,1.00450967]
[1742101453647,2.8465259,609.69,608.47,1.00450967]
[1742101453946,2.8465259,609.69,608.48,1.00450967]
[1742101454148,2.8465259,609.69,608.49,1.00450967]
[1742101454348,2.8465259,609.69,608.5,1.00450967]
[1742101454542,2.8465259,609.69,608.51,1.00450967]
[1742101454747,2.8465259,609.69,608.52,1.00450967]
[1742101454948,0.32803555,609.69,608.53,1.00450967]
[1742101455148,0.32803555,609.69,608.54,1.00367547]
[1742101455349,0.32803555,609.69,608.49,1.921]
[1742101455550,0.32803555,609.69,608.5,1.00353517]
[1742101455751,0.32803555,609.69,608.51,1.00353517]
[1742101455950,0.32803555,609.69,608.5,1.00353517]
[1742101456252,0.32803555,609.69,608.51,1.448]
[1742101456550,0.32803555,609.69,608.52,1.00353517]
[1742101456850,0.32803555,609.69,608.51,1.448]
[1742101457449,0.32803555,609.69,608.52,1.00364946]
[1742101457652,0.32803555,609.69,608.51,1.448]
[1742101458753,2.51849035,609.61,608.51,1.448]
[1742101460450,2.51849035,609.6,608.51,1.448]
[1742101462855,2.51849035,609.62,608.51,1.448]
[1742101463055,2.84656357,609.62,608.51,1.448]
[1742101463256,0.3280786,609.61,608.51,1.448]
[1742101463759,0.3280786,609.61,608.52,1.00319852]
[1742101463956,0.3280786,609.61,608.53,2.47652393]
[1742101464153,2.51849035,609.62,608.54,1.33185399]
[1742101464357,2.51849035,609.62,608.55,1.33184858]
[1742101464558,2.51849035,609.62,608.56,1.33184318]
[1742101464757,2.51849035,609.62,608.57,1.33183778]
[1742101464956,2.51849035,610.37,608.58,1.33183238]
[1742101465253,0.32768083,610.35,608.59,1.33182698]
[1742101465450,0.32768083,610.35,608.6,1.33182158]
[1742101465655,0.32768083,610.35,608.61,1.33181618]
[1742101465851,0.32768083,610.35,608.62,1.33181079]
[1742101466054,0.32768083,610.35,608.63,2.14786306]
[1742101466256,0.32768083,610.35,608.64,1.00319852]
[1742101466454,0.32768083,610.35,608.65,1.00319852]
[1742101466657,0.32768083,610.35,608.66,1.00319852]
[1742101466858,0.32768083,610.35,608.62,0.32861227]
[1742101467053,0.32768083,610.35,608.63,1.00172271]
[1742101467257,0.32768083,610.35,608.64,1.00172271]
[1742101467453,0.32768083,610.35,608.65,1.00172271]
[1742101467653,2.51849035,610.32,608.66,1.33031338]
[1742101467858,2.51849035,610.32,608.67,1.00172271]
[1742101468058,2.51849035,610.32,608.68,1.00172271]
[1742101468255,2.51849035,610.32,608.69,1.33029718]
[1742101468453,0.32770768,610.3,608.7,2.47171793]
[1742101468657,0.32770768,610.3,608.71,1.33028639]
[1742101468960,0.32770768,610.3,608.72,1.33028099]
[1742101469161,0.32770768,610.3,608.73,1.33027559]
[1742101469360,0.32770768,610.3,608.74,1.3302702]
[1742101469564,0.32770768,610.3,608.75,1.3302648]
[1742101469862,2.51849035,610.2,608.76,1.3302594]
[1742101470063,0.32776676,610.19,608.77,1.33025401]
[1742101470262,0.32776676,610.19,608.77,0.3285313]
[1742101470962,0.32776676,610.19,608.77,2.4085313]
[1742101478468,0.32776676,610.19,608.77,4.4895313]
[1742101484474,0.32776676,610.19,608.77,6.3795313]
[1742101490871,0.32776676,610.19,608.77,8.3105313]
[1742101497581,2.51849035,609.98,608.77,8.3105313]
[1742101497782,0.32788497,609.97,608.77,8.3105313]
[1742101535516,2.51849035,609.86,608.77,8.3105313]
[1742101536107,0.32794949,609.85,608.77,8.3105313]
[1742101537303,2.51849035,609.7,608.77,8.3105313]
[1742101539107,2.51849035,609.73,608.77,8.3105313]
[1742101542209,2.51849035,609.74,608.77,8.3105313]
[1742101546611,0.32794949,609.85,608.77,8.3105313]
[1742101546612,2.51849035,609.77,608.77,8.3105313]
[1742101546815,2.84648287,609.77,608.77,8.3105313]
[1742101548818,2.51849035,609.52,608.77,8.3105313]
[1742101550817,0.32799252,609.77,608.77,8.3105313]
[1742101569538,2.51849035,609.53,608.77,8.3105313]
[1742101573237,2.51849035,609.49,608.77,8.3105313]
[1742101574038,2.51849035,609.49,608.77,7.982]
[1742101575035,0.32799252,609.77,608.77,7.982]
[1742101580345,2.51849035,609.61,608.77,7.982]
[1742101582345,2.84656895,609.61,608.77,7.982]
[1742101582740,2.51849035,609.56,608.77,7.982]
[1742101584042,2.51849035,609.59,608.77,7.982]
[1742101585548,2.51849035,609.6,608.77,7.982]
[1742101587648,2.51849035,609.46,608.77,7.982]
[1742101590152,2.51849035,609.28,608.77,7.982]
[1742101590545,2.51849035,609.28,608.24,0.2857706]
[1742101590745,2.51849035,609.28,608.25,1.63568698]
[1742101591052,2.51849035,609.28,608.26,1.63568158]
[1742101591349,2.51849035,609.28,608.27,2.78265416]
[1742101591550,2.51849035,609.28,608.28,1.33377314]
[1742101591750,2.51849035,609.28,608.29,2.48074573]
[1742101591945,2.51849035,609.28,608.3,1.33376233]
[1742101592146,2.51849035,609.28,608.31,1.33375693]
[1742101592348,2.51849035,609.28,608.32,2.15195519]
[1742101592552,2.51849035,609.28,608.33,1.0049772]
[1742101592749,2.51849035,609.28,608.34,1.0049772]
[1742101593046,2.51849035,609.28,608.35,1.0049772]
[1742101593251,2.51849035,609.28,608.36,1.0049772]
[1742101593450,2.51849035,609.28,608.35,1.454]
[1742101593451,2.51849035,609.28,608.37,1.0049772]
[1742101593651,2.51849035,609.28,608.38,1.0049772]
[1742101593853,2.51849035,609.28,608.35,1.454]
[1742101594047,2.51849035,609.29,608.36,1.00465842]
[1742101594245,2.51849035,609.29,608.37,1.00465842]
[1742101594445,2.51849035,609.29,608.38,1.00465842]
[1742101594648,2.51849035,609.29,608.37,2.022]
[1742101594851,2.51849035,609.29,608.38,1.00458944]
[1742101595050,2.51849035,609.29,608.37,2.022]
[1742101596057,2.51849035,609.34,608.37,2.022]
[1742101597154,2.51849035,609.49,608.37,2.022]
[1742101597657,2.51849035,609.49,608.38,1.00436015]
[1742101597857,2.51849035,609.49,608.39,1.00436015]
[1742101598157,2.51849035,609.49,608.37,2.022]
[1742101598357,2.51849035,609.49,608.38,1.00427562]
[1742101598557,2.51849035,609.49,608.37,2.022]
[1742101598757,2.51849035,609.49,608.38,1.00427562]
[1742101598957,2.51849035,609.49,608.37,2.022]
[1742101599158,2.51849035,609.49,608.38,1.00427562]
[1742101599350,2.51849035,609.49,608.37,2.022]
[1742101599555,2.51849035,609.48,608.37,2.022]
[1742101601255,0.3280786,609.61,608.37,2.022]
[1742101605562,2.51849035,609.55,608.37,2.022]
[1742101605762,0.32811628,609.54,608.37,2.022]
[1742101610568,2.51849035,609.4,608.37,2.022]
[1742101612265,2.51849035,609.44,608.37,2.022]
[1742101613570,2.51849035,609.44,608.35,1.454]
[1742101613769,2.51849035,609.42,608.35,1.454]
[1742101616166,2.51849035,609.42,608.34,1.78]
[1742101616366,2.51849035,609.42,608.35,1.00415994]
[1742101616569,2.51849035,609.31,608.34,1.78]
[1742101616769,2.51849035,609.31,608.35,1.00415994]
[1742101616971,2.51849035,609.31,608.35,1.44]
[1742101617272,2.51849035,609.31,608.36,1.00426061]
[1742101617473,2.51849035,609.31,608.37,1.00426061]
[1742101617666,2.51849035,609.31,608.38,1.00426061]
[1742101617866,2.51849035,609.31,608.35,1.44]
[1742101618066,2.51849035,609.31,608.36,1.0042214]
[1742101618268,2.51849035,609.31,608.37,1.0042214]
[1742101618467,2.51849035,609.31,608.38,1.0042214]
[1742101618669,2.51849035,609.31,608.39,1.0042214]
[1742101618867,2.51849035,609.48,608.4,1.00428245]
[1742101619064,2.51849035,609.48,608.35,1.44]
[1742101619271,2.51849035,609.48,608.36,1.00437479]
[1742101619466,2.51849035,609.48,608.37,1.00437479]
[1742101619671,2.51849035,609.48,608.38,3.14737479]
[1742101619866,2.51849035,609.48,608.39,1.00437479]
[1742101620470,0.32811628,609.54,608.39,1.00437479]
[1742101622474,0.32811628,609.54,608.4,2.56455284]
[1742101622769,0.32811628,609.54,608.41,1.00455284]
[1742101622969,0.32811628,609.54,608.42,1.00456265]
[1742101623173,0.32811628,609.54,608.4,1.56]
[1742101623374,0.32811628,609.54,608.42,1.653]
[1742101625070,0.32811628,609.54,608.43,1.00491524]
[1742101625275,0.32811628,609.54,608.42,1.653]
[1742101625475,0.32811628,609.54,608.43,1.00490969]
[1742101625775,0.32811628,609.54,608.42,1.653]
[1742101625971,0.32811628,609.54,608.43,1.00494974]
[1742101626175,0.32811628,609.54,608.42,1.653]
[1742101626477,0.32811628,609.54,608.43,1.00510327]
[1742101626677,0.32811628,609.54,608.42,1.653]
[1742101626875,0.32811628,609.54,608.43,1.0051021]
[1742101627076,0.32811628,609.54,608.44,1.00523991]
[1742101627276,0.32811628,609.54,608.42,1.653]
[1742101627575,0.32811628,609.54,608.43,1.00523991]
[1742101627778,0.32811628,609.54,608.44,1.00523991]
[1742101627976,0.32811628,609.54,608.42,1.653]
[1742101629477,0.32811628,609.54,608.43,1.00571436]
[1742101629670,0.32811628,609.54,608.42,1.653]
[1742101629870,0.32811628,609.54,608.43,1.00570871]
[1742101630075,0.32811628,609.54,608.42,1.653]
[1742101630277,0.32811628,609.54,608.43,1.00595065]
[1742101630478,0.32811628,609.54,608.44,1.00595065]
[1742101630674,0.32811628,609.54,608.42,1.653]
[1742101630881,0.32811628,609.54,608.43,1.00597241]
[1742101631184,0.32811628,609.54,608.44,1.00597241]
[1742101631486,0.32811628,609.54,608.45,1.00597241]
[1742101631680,2.84660663,609.54,608.42,1.653]
[1742101631881,2.84660663,609.54,608.43,1.00627683]
[1742101632081,2.84660663,609.54,608.44,1.00627683]
[1742101632282,2.84660663,609.54,608.45,1.00627683]
[1742101632481,2.84660663,609.54,608.46,1.00627683]
[1742101632689,2.84660663,609.54,608.42,1.653]
[1742101632887,2.84660663,609.54,608.43,1.00670017]
[1742101633187,2.84660663,609.54,608.44,1.00670017]
[1742101633386,0.32811628,609.54,608.45,1.00670017]
[1742101633586,0.32811628,609.54,608.46,1.00670017]
[1742101633781,0.32811628,609.54,608.47,1.00670017]
[1742101633979,0.32811628,609.54,608.42,1.653]
[1742101634180,0.32811628,609.54,608.43,1.00711809]
[1742101634389,0.32811628,609.54,608.44,1.00711809]
[1742101634588,0.32811628,609.54,608.45,1.00711809]
[1742101634887,0.32811628,609.54,608.46,1.00711809]
[1742101635082,0.32811628,609.54,608.47,1.00711809]
[1742101635287,0.32811628,609.54,608.48,1.00711809]
[1742101635485,0.32811628,609.54,608.49,1.00711809]
[1742101635687,0.32811628,609.54,608.42,1.653]
[1742101635887,0.32811628,609.54,608.43,1.00733651]
[1742101636090,0.32811628,609.54,608.44,1.00733651]
[1742101636292,0.32811628,609.54,608.45,1.00733651]
[1742101636492,0.32811628,609.54,608.46,1.00733651]
[1742101636695,2.84660663,609.54,608.47,1.00733651]
[1742101636894,2.84660663,609.54,608.48,1.00733651]
[1742101637192,2.84660663,609.54,608.49,1.00733651]
[1742101637393,2.84660663,609.54,608.5,1.00733651]
[1742101637693,2.84660663,609.54,608.42,1.653]
[1742101637887,2.84660663,609.54,608.43,2.15744855]
[1742101638087,2.84660663,609.54,608.44,1.00747893]
[1742101638293,2.84660663,609.54,608.45,1.00747893]
[1742101638492,2.84660663,609.54,608.46,1.00747893]
[1742101638692,2.84660663,609.54,608.47,1.00747893]
[1742101638892,2.84660663,609.54,608.48,1.00747893]
[1742101639188,2.51849035,609.5,608.49,1.00747893]
[1742101639394,2.51849035,609.5,608.5,1.00747893]
[1742101639588,2.51849035,609.5,608.42,1.653]
[1742101639787,2.51849035,609.5,608.43,1.00747244]
[1742101639994,2.51849035,609.5,608.44,1.00747244]
[1742101640293,2.51849035,609.5,608.45,1.00747244]
[1742101640493,2.51849035,609.5,608.46,1.00747244]
[1742101640693,2.51849035,609.5,608.47,1.00747244]
[1742101640888,2.51849035,609.5,608.48,1.00747244]
[1742101641092,2.51849035,609.49,608.49,1.00747244]
[1742101641292,2.51849035,609.49,608.5,1.00747244]
[1742101641488,2.51849035,609.49,608.42,1.653]
[1742101641791,2.51849035,609.49,608.43,1.00745601]
[1742101641992,2.51849035,609.49,608.44,1.00745601]
[1742101642192,2.51849035,609.49,608.42,1.653]
[1742101642193,2.51849035,609.49,608.45,1.00745601]
[1742101642393,2.51849035,609.49,608.46,1.00745601]
[1742101642594,2.51849035,609.48,608.42,1.653]
[1742101642794,2.51849035,609.48,608.43,1.00747109]
[1742101642991,2.51849035,609.48,608.44,1.00747109]
[1742101643190,2.51849035,609.48,608.45,1.00747109]
[1742101643396,2.51849035,609.48,608.42,1.653]
[1742101643591,2.51849035,609.48,608.46,2.14]
[1742101644495,2.51849035,609.45,608.46,2.14]
[1742101646496,2.51849035,609.31,608.46,2.14]
[1742101647196,2.51849035,609.31,608.47,1.694]
[1742101648394,2.51849035,609.3,608.47,1.694]
[1742101650092,2.51849035,609.31,608.47,1.694]
[1742101652096,0.32811628,609.54,608.47,1.694]
[1742101661307,0.32811628,609.54,608.46,2.14]
[1742101664205,0.32811628,609.54,608.47,1.908]
[1742101672720,0.32811628,609.54,608.48,1.891]
[1742101674322,0.32811628,609.54,608.49,1.572]
[1742101676725,2.51849035,609.42,608.49,1.572]
[1742101677019,0.32818627,609.41,608.49,1.572]
[1742101678016,2.51849035,609.37,608.49,1.572]
[1742101678220,0.3282132,609.36,608.49,1.572]
[1742101681523,2.51849035,609.16,608.49,1.572]
[1742101683127,2.51849035,609.14,608.49,1.572]
[1742101684429,2.51849035,609.19,608.49,1.572]
[1742101685223,2.51849035,609.19,608.5,1.926]
[1742101686025,2.51849035,609.18,608.5,1.926]
[1742101686224,2.51849035,609.18,608.51,1.632]
[1742101688229,2.51849035,609.29,608.51,1.632]
[1742101689923,2.51849035,609.26,608.51,1.632]
[1742101692229,2.51849035,609.24,608.52,1.661]
[1742101695132,2.51849035,609.14,608.52,1.661]
[1742101699133,0.3282132,609.36,608.52,1.661]
[1742101700335,0.3282132,609.36,608.52,3.152]
[1742101708946,0.3282132,609.36,608.52,4.603]
[1742101710747,2.51849035,609.34,608.52,4.603]
[1742101712143,2.84670355,609.36,608.52,4.603]
[1742101714757,2.51849035,609.35,608.52,4.603]
[1742101716653,2.51849035,609.27,608.52,4.603]
[1742101718357,2.51849035,609.21,608.52,4.603]
[1742101719857,2.51849035,609.22,608.52,4.603]
[1742101720660,2.51849035,609.22,608.52,6.578]
[1742101721661,2.51849035,609.06,608.52,6.578]
[1742101722157,2.51849035,609.06,608.52,4.917]
[1742101723559,2.51849035,609.1,608.52,4.917]
[1742101725863,2.51849035,609.15,608.52,6.755]
[1742101727066,2.51849035,609.11,608.52,6.755]
[1742101731967,2.51849035,609.13,608.52,6.755]
[1742101734969,0.3282132,609.36,608.52,6.755]
[1742101734970,2.51849035,609.15,608.52,6.755]
[1742101737079,2.51849035,609.09,608.52,6.755]
[1742101738873,2.51849035,609.09,608.52,6.7499966]
[1742101739073,2.51849035,609.09,608.52,5.264]
[1742101739278,2.51849035,609.03,608.52,5.264]
[1742101739675,2.51849035,609.03,608.52,3.813]
[1742101740881,2.51849035,609.05,608.52,3.813]
[1742101742382,2.51849035,609.15,608.52,3.813]
[1742101743180,2.51849035,609.15,608.52,5.924]
[1742101744285,2.51849035,609.13,608.52,5.924]
[1742101747478,2.51849035,609.19,608.52,5.924]
[1742101750585,2.51849035,609.17,608.52,5.924]
[1742101752587,2.51849035,609.12,608.52,5.924]
[1742101754486,2.51849035,609.11,608.52,5.924]
[1742101756083,2.51849035,609.05,608.52,5.924]
[1742101756591,2.51849035,609.05,608.52,1.975]
[1742101757685,0.3282132,609.36,608.52,1.975]
[1742101759489,0.3282132,609.36,608.52,3.517]
[1742101760190,0.3282132,609.36,608.52,5.155]
[1742101763491,2.51849035,609.25,608.52,5.155]
[1742101763691,0.32827785,609.24,608.52,5.155]
[1742101771505,2.51849035,609.05,608.52,5.155]
[1742101771707,0.32838565,609.04,608.52,5.155]
[1742101772000,0.32838565,609.04,608.52,3.18]
[1742101773408,0.32838565,609.04,608.52,0.53308498]
[1742101773610,0.32838565,609.04,607.85,1.802]
[1742101774807,0.32838565,609.04,607.86,2.076]
[1742101791320,2.51849035,608.93,607.86,2.076]
[1742101791516,0.32845037,608.92,607.86,2.076]
[1742101793420,2.51849035,608.9,607.86,2.076]
[1742101793818,0.32846655,608.89,607.86,2.076]
[1742101795122,2.51849035,608.8,607.86,2.076]
[1742101795316,0.3285205,608.79,607.86,2.076]
[1742101797122,2.51849035,608.51,607.86,2.076]
[1742101798822,2.51849035,608.56,607.86,2.076]
[1742101800824,2.51849035,608.56,607.85,1.802]
[1742101801525,2.51849035,608.51,607.85,1.802]
[1742101803420,0.3285205,608.79,607.85,1.802]
[1742101804425,0.3285205,608.79,607.86,2.135]
[1742101808228,2.51849035,608.67,607.86,2.135]
[1742101809928,2.51849035,608.74,607.86,2.135]
[1742101812124,2.51849035,608.77,607.86,2.135]